Workbook

Sheet Вводные данные
A1: № | B1: Фильтры | C1: Требуемые значения
A2: 1 | B2: Наличие мобильного приложения | C2: 0
A3: 2 | B3: Минимальное число пользователей | C3: 1000
A4: 3 | B4: Минимальное число проектов | C4: 2500
A5: 4 | B5: Интеграция с GitHub | C5: 0
A6: 5 | B6: Интеграция с почтой | C6: 0
A7: 6 | B7: Наличие облачного решения | C7: 0
A8: 7 | B8: Возможность работы с расписанием | C8: 0
A9: 8 | B9: Возможность работы с ресурами проектов | C9: 0
A10: 9 | B10: Открытый API | C10: 0
A12: № | B12: Параметрические критерии | C12: Ежемесячные затраты на обслуживание | D12: Техподдержка + обучение | E12: Безопасность | F12: Кросс-платформенность | G12: Работа с задачами/проектами | H12: Работа с расписаниями | I12: Ведение коммуникаций и интеграция | J12: Формирование отчетности для менеджера | K12: Работа с ресурсами проектов
B13: Веса | C13: 1 | D13: 1 | E13: 1 | F13: 1 | G13: 3 | H13: 2 | I13: 3 | J13: 1 | K13: 2
B24: Показатель | C24: Результат
B25: Количество критериев с высоким приоритетом | C25: =COUNTIF(C13:K13,3) -> 2
B26: Количество критериев с обычным приоритетом | C26: =COUNTIF(C13:K13,2) -> 2
B27: Необходимо переоценить приоритеты? | C27: =IF(OR(C25>3,C26>3),"Да, необходима переоценка","Нет, переоценка не требуется") -> Нет, переоценка не требуется

Sheet Подложка
A1: № | B1: 1 | C1: 2 | G1: 3 | M1: 4 | Q1: 5 | X1: 6 | AB1: 7 | AG1: 8 | AL1: 9
A2: Категория | B2: Ежемесячные затраты на обслуживание (на одного пользователя) | C2: Техподдержка + обучение | G2: Безопасность | M2: Кросс-платформенность | Q2: Работа с задачами/проектами | X2: Работа с расписаниями | AB2: Ведение коммуникаций и интеграция | AG2: Формирование отчетности для менеджера | AL2: Работа с ресурсами проектов
A3: Параметры | B3: Цена user/month month | C3: Наличие техподдержки | D3: Наличие обучения пользованием приложением | E3: Возможность выделения персонального менеджера/выделенную линию поддержки | F3: Наличие открытого сообщества пользователей | G3: Наличие многофакторной аутентификации (2-х и более) | H3: Отсутствие информации в google о нахождении уязвимостей за последние 3 месяца | I3: Наличие серверов в РФ | J3: Облачность | K3: Возможность установки различных доступов сотрудникам | L3: Наличие собственной системы шифрования | M3: Возможность использования в Mac OS | N3: Наличие мобильной версии на iOS | O3: Наличие мобильной версии на Android | P3: Linux | Q3: Возможность установки статусов | R3: Возможность установки ответственных и дедлайнов | S3: Возможность комментирования задания | T3: Возможность кастомизации параметров задачи/проекта | U3: Возможность формирования базы знаний | V3: Невозможность установки нескольких ответственных в одной задаче | W3: Возможность установки связи между задачами/проектами | X3: Возможность построения диаграммы ганта | Y3: Возможность отображения календаря сотрудника | Z3: Возможность отображения совместного прогресса всех проектов | AA3: Сверка дедлайнов со статусом задачи/проекта | AB3: Возможность вести переписку с сотрудниками внутри приложения | AC3: Возможность интеграции с другими приложениями по управлению проектами | AD3: Интеграция с почтой | AE3: Возможность файлообмена внутри приложения | AF3: Открытый API | AG3: Возможность формирования отчетности в принципе | AH3: Возможность выгрузки отчетов в pdf | AI3: Возможность кастомизации дэшбордов | AJ3: Возможность формирования графиков | AK3: Возможность формирования отчета по сотруднику с трекингом его целей | AL3: Возможность трекинга трудозатрат/времени работы | AM3: Возможность определения загрузки сотрудников | AN3: Возможность трекинга бюджета проекта/затрат на проект | AO3: Возможность определения степени использования оборудования | AP3: Возможность левелинга ресурсов
A4: LiquidPlanner | B4: 59 | C4: 1 | D4: 1 | E4: 1 | F4: 0 | G4: 0 | H4: 1 | I4: 0 | J4: 1 | K4: 1 | L4: 1 | M4: 0 | N4: 1 | O4: 1 | P4: 0 | Q4: 0 | R4: 0 | S4: 0 | T4: 1 | U4: 0 | V4: 0 | W4: 1 | X4: 0 | Y4: 1 | Z4: 1 | AA4: 1 | AB4: 1 | AC4: 0 | AD4: 1 | AE4: 1 | AF4: 1 | AG4: 0 | AH4: 0 | AI4: 0 | AJ4: 0 | AK4: 1 | AL4: 1 | AM4: 1 | AN4: 0 | AO4: 0 | AP4: 1
A5: Teamwork | B5: 18 | C5: 1 | D5: 1 | E5: 0 | F5: 0 | G5: 1 | H5: 1 | I5: 1 | J5: 1 | K5: 1 | L5: 1 | M5: 1 | N5: 1 | O5: 1 | P5: 0 | Q5: 1 | R5: 1 | S5: 0 | T5: 1 | U5: 0 | V5: 1 | W5: 1 | X5: 1 | Y5: 1 | Z5: 1 | AA5: 1 | AB5: 1 | AC5: 1 | AD5: 1 | AE5: 1 | AF5: 1 | AG5: 1 | AH5: 0 | AI5: 1 | AJ5: 1 | AK5: 1 | AL5: 1 | AM5: 1 | AN5: 1 | AO5: 0 | AP5: 1
A6: Zoho Projects | B6: 9 | C6: 1 | D6: 1 | E6: 1 | F6: 1 | G6: 1 | H6: 1 | I6: 0 | J6: 1 | K6: 1 | L6: 1 | M6: 0 | N6: 1 | O6: 1 | P6: 0 | Q6: 1 | R6: 1 | S6: 1 | T6: 1 | U6: 0 | V6: 1 | W6: 1 | X6: 1 | Y6: 1 | Z6: 1 | AA6: 1 | AB6: 1 | AC6: 1 | AD6: 1 | AE6: 1 | AF6: 1 | AG6: 1 | AH6: 0 | AI6: 1 | AJ6: 1 | AK6: 0 | AL6: 1 | AM6: 1 | AN6: 1 | AO6: 0 | AP6: 1
A7: Celoxis | B7: 22.5 | C7: 1 | D7: 1 | E7: 1 | F7: 1 | G7: 1 | H7: 1 | I7: 1 | J7: 1 | K7: 1 | L7: 1 | M7: 1 | N7: 1 | O7: 1 | P7: 1 | Q7: 0 | R7: 1 | S7: 1 | T7: 1 | U7: 0 | V7: 0 | W7: 1 | X7: 1 | Y7: 1 | Z7: 1 | AA7: 1 | AB7: 1 | AC7: 1 | AD7: 1 | AE7: 1 | AF7: 1 | AG7: 1 | AH7: 1 | AI7: 1 | AJ7: 1 | AK7: 0 | AL7: 1 | AM7: 1 | AN7: 1 | AO7: 0 | AP7: 1
A8: GanttPro | B8: 8.9 | C8: 1 | D8: 1 | E8: 1 | F8: 0 | G8: 1 | H8: 1 | I8: 0 | J8: 1 | K8: 1 | L8: 1 | M8: 0 | N8: 0 | O8: 0 | P8: 0 | Q8: 1 | R8: 1 | S8: 1 | T8: 1 | U8: 0 | V8: 0 | W8: 1 | X8: 1 | Y8: 1 | Z8: 1 | AA8: 1 | AB8: 0 | AC8: 1 | AD8: 0 | AE8: 1 | AF8: 1 | AG8: 1 | AH8: 1 | AI8: 1 | AJ8: 1 | AK8: 1 | AL8: 1 | AM8: 1 | AN8: 1 | AO8: 1 | AP8: 1
A9: ProofHub | B9: 89 | C9: 1 | D9: 1 | E9: 1 | F9: 0 | G9: 1 | H9: 1 | I9: 0 | J9: 1 | K9: 1 | L9: 1 | M9: 0 | N9: 1 | O9: 1 | P9: 0 | Q9: 0 | R9: 1 | S9: 1 | T9: 1 | U9: 0 | V9: 1 | W9: 0 | X9: 1 | Y9: 1 | Z9: 1 | AA9: 1 | AB9: 1 | AC9: 0 | AD9: 1 | AE9: 1 | AF9: 1 | AG9: 1 | AH9: 1 | AI9: 1 | AJ9: 1 | AK9: 1 | AL9: 1 | AM9: 0 | AN9: 0 | AO9: 0 | AP9: 0
A10: Redmine | B10: 0 | C10: 0 | D10: 1 | E10: 0 | F10: 1 | G10: 1 | H10: 1 | I10: 1 | J10: 1 | K10: 1 | L10: 1 | M10: 1 | N10: 1 | O10: 1 | P10: 1 | Q10: 0 | R10: 1 | S10: 1 | T10: 1 | U10: 1 | V10: 0 | W10: 1 | X10: 1 | Y10: 0 | Z10: 0 | AA10: 1 | AB10: 1 | AC10: 0 | AD10: 1 | AE10: 1 | AF10: 1 | AG10: 0 | AH10: 0 | AI10: 0 | AJ10: 0 | AK10: 0 | AL10: 1 | AM10: 0 | AN10: 0 | AO10: 0 | AP10: 0
A11: Smartsheet | B11: 25 | C11: 1 | D11: 1 | E11: 1 | F11: 1 | G11: 0 | H11: 1 | I11: 0 | J11: 1 | K11: 1 | L11: 1 | M11: 0 | N11: 1 | O11: 1 | P11: 0 | Q11: 0 | R11: 1 | S11: 1 | T11: 0 | U11: 0 | V11: 0 | W11: 0 | X11: 1 | Y11: 1 | Z11: 1 | AA11: 1 | AB11: 1 | AC11: 1 | AD11: 1 | AE11: 1 | AF11: 1 | AG11: 1 | AH11: 1 | AI11: 1 | AJ11: 1 | AK11: 1 | AL11: 1 | AM11: 1 | AN11: 1 | AO11: 0 | AP11: 1
A12: TeamGantt | B12: 24.45 | C12: 1 | D12: 1 | E12: 0 | F12: 0 | G12: 1 | H12: 1 | I12: 0 | J12: 1 | K12: 1 | L12: 1 | M12: 0 | N12: 1 | O12: 1 | P12: 0 | Q12: 1 | R12: 1 | S12: 1 | T12: 1 | U12: 0 | V12: 0 | W12: 1 | X12: 1 | Y12: 1 | Z12: 1 | AA12: 1 | AB12: 1 | AC12: 1 | AD12: 0 | AE12: 1 | AF12: 1 | AG12: 1 | AH12: 1 | AI12: 1 | AJ12: 0 | AK12: 0 | AL12: 1 | AM12: 1 | AN12: 1 | AO12: 0 | AP12: 1
A13: Wrike | B13: 24.8 | C13: 1 | D13: 1 | E13: 1 | F13: 1 | G13: 1 | H13: 1 | I13: 0 | J13: 1 | K13: 1 | L13: 1 | M13: 1 | N13: 1 | O13: 1 | P13: 0 | Q13: 0 | R13: 1 | S13: 0 | T13: 1 | U13: 0 | V13: 0 | W13: 1 | X13: 1 | Y13: 1 | Z13: 1 | AA13: 1 | AB13: 1 | AC13: 1 | AD13: 1 | AE13: 1 | AF13: 1 | AG13: 1 | AH13: 0 | AI13: 1 | AJ13: 1 | AK13: 1 | AL13: 1 | AM13: 1 | AN13: 0 | AO13: 0 | AP13: 1
A14: MS Project | B14: =3437.5/74/12 -> 3.871058559 | C14: 1 | D14: 1 | E14: 0 | F14: 1 | G14: 1 | H14: 1 | I14: 1 | J14: 1 | K14: 1 | L14: 1 | M14: 0 | N14: 0 | O14: 0 | P14: 0 | Q14: 1 | R14: 1 | S14: 1 | T14: 1 | U14: 0 | V14: 0 | W14: 1 | X14: 1 | Y14: 1 | Z14: 1 | AA14: 1 | AB14: 0 | AC14: 1 | AD14: 1 | AE14: 1 | AF14: 0 | AG14: 1 | AH14: 0 | AI14: 1 | AJ14: 1 | AK14: 1 | AL14: 1 | AM14: 1 | AN14: 1 | AO14: 1 | AP14: 1
A15: Trello | B15: 10 | C15: 1 | D15: 1 | E15: 1 | F15: 0 | G15: 1 | H15: 1 | I15: 0 | J15: 1 | K15: 1 | L15: 1 | M15: 1 | N15: 1 | O15: 1 | P15: 0 | Q15: 0 | R15: 1 | S15: 1 | T15: 1 | U15: 0 | V15: 0 | W15: 1 | X15: 0 | Y15: 0 | Z15: 1 | AA15: 1 | AB15: 1 | AC15: 1 | AD15: 1 | AE15: 1 | AF15: 1 | AG15: 1 | AH15: 0 | AI15: 1 | AJ15: 1 | AK15: 0 | AL15: 0 | AM15: 1 | AN15: 0 | AO15: 0 | AP15: 1
A16: Asana | B16: 24.99 | C16: 1 | D16: 1 | E16: 1 | F16: 1 | G16: 1 | H16: 1 | I16: 0 | J16: 1 | K16: 1 | L16: 1 | M16: 1 | N16: 1 | O16: 1 | P16: 0 | Q16: 1 | R16: 1 | S16: 1 | T16: 1 | U16: 0 | V16: 0 | W16: 1 | X16: 1 | Y16: 1 | Z16: 1 | AA16: 1 | AB16: 1 | AC16: 1 | AD16: 1 | AE16: 1 | AF16: 1 | AG16: 1 | AH16: 0 | AI16: 1 | AJ16: 1 | AK16: 1 | AL16: 0 | AM16: 1 | AN16: 0 | AO16: 0 | AP16: 1
A17: Jira | B17: 14 | C17: 1 | D17: 1 | E17: 1 | F17: 1 | G17: 1 | H17: 1 | I17: 1 | J17: 1 | K17: 1 | L17: 1 | M17: 1 | N17: 1 | O17: 1 | P17: 0 | Q17: 1 | R17: 1 | S17: 1 | T17: 1 | U17: 0 | V17: 0 | W17: 1 | X17: 0 | Y17: 0 | Z17: 1 | AA17: 1 | AB17: 0 | AC17: 1 | AD17: 1 | AE17: 1 | AF17: 1 | AG17: 1 | AH17: 0 | AI17: 1 | AJ17: 1 | AK17: 1 | AL17: 0 | AM17: 1 | AN17: 0 | AO17: 0 | AP17: 1
A18: Bitrix24 | B18: =9590/74 -> 129.5945946 | C18: 1 | D18: 1 | E18: 0 | F18: 0 | G18: 1 | H18: 1 | I18: 1 | J18: 1 | K18: 1 | L18: 1 | M18: 1 | N18: 1 | O18: 1 | P18: 0 | Q18: 1 | R18: 1 | S18: 0 | T18: 1 | U18: 1 | V18: 0 | W18: 1 | X18: 1 | Y18: 1 | Z18: 1 | AA18: 1 | AB18: 1 | AC18: 1 | AD18: 0 | AE18: 1 | AF18: 1 | AG18: 1 | AH18: 0 | AI18: 1 | AJ18: 1 | AK18: 1 | AL18: 1 | AM18: 0 | AN18: 1 | AO18: 1 | AP18: 0
A19: Basecamp | B19: 99 | C19: 1 | D19: 1 | E19: 0 | F19: 0 | G19: 1 | H19: 1 | I19: 0 | J19: 1 | K19: 1 | L19: 1 | M19: 1 | N19: 1 | O19: 1 | P19: 0 | Q19: 1 | R19: 1 | S19: 1 | T19: 1 | U19: 0 | V19: 0 | W19: 1 | X19: 0 | Y19: 1 | Z19: 1 | AA19: 1 | AB19: 1 | AC19: 1 | AD19: 1 | AE19: 1 | AF19: 1 | AG19: 0 | AH19: 0 | AI19: 0 | AJ19: 1 | AK19: 1 | AL19: 0 | AM19: 0 | AN19: 0 | AO19: 0 | AP19: 0
A20: Hive | B20: 12 | C20: 1 | D20: 1 | E20: 0 | F20: 0 | G20: 1 | H20: 1 | I20: 0 | J20: 1 | K20: 1 | L20: 1 | M20: 1 | N20: 1 | O20: 1 | P20: 0 | Q20: 1 | R20: 1 | S20: 1 | T20: 1 | U20: 0 | V20: 0 | W20: 1 | X20: 1 | Y20: 0 | Z20: 1 | AA20: 1 | AB20: 1 | AC20: 1 | AD20: 1 | AE20: 1 | AF20: 0 | AG20: 1 | AH20: 0 | AI20: 1 | AJ20: 1 | AK20: 1 | AL20: 1 | AM20: 1 | AN20: 0 | AO20: 0 | AP20: 1
A21: Backlog | B21: 175 | C21: 1 | D21: 1 | E21: 1 | F21: 1 | G21: 1 | H21: 1 | I21: 1 | J21: 1 | K21: 1 | L21: 1 | M21: 0 | N21: 1 | O21: 1 | P21: 0 | Q21: 1 | R21: 1 | S21: 1 | T21: 1 | U21: 1 | V21: 0 | W21: 1 | X21: 1 | Y21: 1 | Z21: 1 | AA21: 1 | AB21: 1 | AC21: 1 | AD21: 1 | AE21: 1 | AF21: 1 | AG21: 0 | AH21: 0 | AI21: 1 | AJ21: 0 | AK21: 1 | AL21: 0 | AM21: 1 | AN21: 0 | AO21: 0 | AP21: 1
A22: ClickUp | B22: 9 | C22: 1 | D22: 1 | E22: 1 | F22: 1 | G22: 1 | H22: 1 | I22: 0 | J22: 1 | K22: 1 | L22: 1 | M22: 1 | N22: 1 | O22: 1 | P22: 1 | Q22: 1 | R22: 1 | S22: 1 | T22: 1 | U22: 1 | V22: 0 | W22: 1 | X22: 1 | Y22: 1 | Z22: 1 | AA22: 1 | AB22: 1 | AC22: 1 | AD22: 1 | AE22: 1 | AF22: 1 | AG22: 1 | AH22: 0 | AI22: 1 | AJ22: 1 | AK22: 1 | AL22: 1 | AM22: 1 | AN22: 0 | AO22: 0 | AP22: 1
A23: Planfix | B23: =5*1.2 -> 6 | C23: 1 | D23: 1 | E23: 0 | F23: 1 | G23: 1 | H23: 1 | I23: 1 | J23: 1 | K23: 1 | L23: 1 | M23: 0 | N23: 1 | O23: 1 | P23: 0 | Q23: 1 | R23: 1 | S23: 1 | T23: 1 | U23: 1 | V23: 0 | W23: 1 | X23: 1 | Y23: 1 | Z23: 1 | AA23: 1 | AB23: 1 | AC23: 1 | AD23: 1 | AE23: 1 | AF23: 1 | AG23: 1 | AH23: 1 | AI23: 1 | AJ23: 1 | AK23: 0 | AL23: 1 | AM23: 1 | AN23: 1 | AO23: 1 | AP23: 0
A24: YouTrack | B24: 3.66 | C24: 1 | D24: 1 | E24: 0 | F24: 1 | G24: 1 | H24: 1 | I24: 1 | J24: 1 | K24: 1 | L24: 1 | M24: 0 | N24: 1 | O24: 1 | P24: 0 | Q24: 1 | R24: 1 | S24: 1 | T24: 1 | U24: 1 | V24: 0 | W24: 1 | X24: 1 | Y24: 1 | Z24: 1 | AA24: 1 | AB24: 1 | AC24: 1 | AD24: 1 | AE24: 1 | AF24: 1 | AG24: 1 | AH24: 0 | AI24: 1 | AJ24: 1 | AK24: 1 | AL24: 1 | AM24: 0 | AN24: 0 | AO24: 0 | AP24: 1
A27: Альтернатива | B27: Фильтры | K27: Критерии | T27: Проходит по фильтру?
B28: 1 | C28: 2 | D28: 3 | E28: 4 | F28: 5 | G28: 6 | H28: 7 | I28: 8 | J28: 9 | K28: 1 | L28: 2 | M28: 3 | N28: 4 | O28: 5 | P28: 6 | Q28: 7 | R28: 8 | S28: 9
A29: LiquidPlanner | B29: 1 | C29: 9000 | D29: 9000 | E29: 1 | F29: 1 | G29: 1 | H29: 1 | I29: 1 | J29: 1 | K29: =IF(B4*'Вводные данные'!$C$3>150000,1,IF(B4*'Вводные данные'!$C$3<150000,2,IF(B4*'Вводные данные'!$C$3<125000,3,IF(B4*'Вводные данные'!$C$3<100000,4,IF(B4*'Вводные данные'!$C$3<50000,5,IF(B4*'Вводные данные'!$C$3<25000,6,7))))))/$K$51 -> 0.2857142857 | L29: =SUM(C4:F4)/$L$51 -> 0.75 | M29: =SUM(G4:L4)/$M$51 -> 0.6666666667 | N29: =SUM(M4:P4)/$N$51 -> 0.5 | O29: =SUM(Q4:W4)/$O$51 -> 0.2857142857 | P29: =SUM(X4:AA4)/$P$51 -> 0.75 | Q29: =SUM(AB4:AF4)/$Q$51 -> 0.8 | R29: =SUM(AG4:AK4)/$R$51 -> 0.2 | S29: =SUM(AL4:AP4)/$S$51 -> 0.6 | T29: =IF(AND('Вводные данные'!$C$2<=Подложка!B29,'Вводные данные'!$C$3<=Подложка!C29,'Вводные данные'!$C$4<=Подложка!D29,'Вводные данные'!$C$5<=Подложка!E29,'Вводные данные'!$C$6<=Подложка!F29,'Вводные данные'!$C$7<=Подложка!G29,'Вводные данные'!$C$8<=Подложка!H29,'Вводные данные'!$C$9<=Подложка!I29,'Вводные данные'!$C$10<=Подложка!J29),1,0) -> 1
A30: Teamwork | B30: 1 | C30: 9000 | D30: 600 | E30: 1 | F30: 1 | G30: 1 | H30: 1 | I30: 1 | J30: 1 | K30: =IF(B5*'Вводные данные'!$C$3>150000,1,IF(B5*'Вводные данные'!$C$3<150000,2,IF(B5*'Вводные данные'!$C$3<125000,3,IF(B5*'Вводные данные'!$C$3<100000,4,IF(B5*'Вводные данные'!$C$3<50000,5,IF(B5*'Вводные данные'!$C$3<25000,6,7))))))/$K$51 -> 0.2857142857 | L30: 0.5 | M30: =SUM(G5:L5)/$M$51 -> 1 | N30: 0.75 | O30: 0.7142857143 | P30: 1 | Q30: 1 | R30: 0.8 | S30: 0.8 | T30: =IF(AND('Вводные данные'!$C$2<=Подложка!B30,'Вводные данные'!$C$3<=Подложка!C30,'Вводные данные'!$C$4<=Подложка!D30,'Вводные данные'!$C$5<=Подложка!E30,'Вводные данные'!$C$6<=Подложка!F30,'Вводные данные'!$C$7<=Подложка!G30,'Вводные данные'!$C$8<=Подложка!H30,'Вводные данные'!$C$9<=Подложка!I30,'Вводные данные'!$C$10<=Подложка!J30),1,0) -> 0
A31: Zoho Projects | B31: 1 | C31: 9000 | D31: 9000 | E31: 1 | F31: 1 | G31: 1 | H31: 1 | I31: 1 | J31: 1 | K31: =IF(B6*'Вводные данные'!$C$3>150000,1,IF(B6*'Вводные данные'!$C$3<150000,2,IF(B6*'Вводные данные'!$C$3<125000,3,IF(B6*'Вводные данные'!$C$3<100000,4,IF(B6*'Вводные данные'!$C$3<50000,5,IF(B6*'Вводные данные'!$C$3<25000,6,7))))))/$K$51 -> 0.2857142857 | L31: 1 | M31: 0.8333333333 | N31: 0.5 | O31: 0.8571428571 | P31: 1 | Q31: 1 | R31: 0.6 | S31: 0.8 | T31: =IF(AND('Вводные данные'!$C$2<=Подложка!B31,'Вводные данные'!$C$3<=Подложка!C31,'Вводные данные'!$C$4<=Подложка!D31,'Вводные данные'!$C$5<=Подложка!E31,'Вводные данные'!$C$6<=Подложка!F31,'Вводные данные'!$C$7<=Подложка!G31,'Вводные данные'!$C$8<=Подложка!H31,'Вводные данные'!$C$9<=Подложка!I31,'Вводные данные'!$C$10<=Подложка!J31),1,0) -> 1
A32: Celoxis | B32: 1 | C32: 9000 | D32: 9000 | E32: 1 | F32: 1 | G32: 1 | H32: 1 | I32: 1 | J32: 1 | K32: =IF(B7*'Вводные данные'!$C$3>150000,1,IF(B7*'Вводные данные'!$C$3<150000,2,IF(B7*'Вводные данные'!$C$3<125000,3,IF(B7*'Вводные данные'!$C$3<100000,4,IF(B7*'Вводные данные'!$C$3<50000,5,IF(B7*'Вводные данные'!$C$3<25000,6,7))))))/$K$51 -> 0.2857142857 | L32: 1 | M32: 1 | N32: 1 | O32: 0.5714285714 | P32: 1 | Q32: 1 | R32: 0.8 | S32: 0.8 | T32: =IF(AND('Вводные данные'!$C$2<=Подложка!B32,'Вводные данные'!$C$3<=Подложка!C32,'Вводные данные'!$C$4<=Подложка!D32,'Вводные данные'!$C$5<=Подложка!E32,'Вводные данные'!$C$6<=Подложка!F32,'Вводные данные'!$C$7<=Подложка!G32,'Вводные данные'!$C$8<=Подложка!H32,'Вводные данные'!$C$9<=Подложка!I32,'Вводные данные'!$C$10<=Подложка!J32),1,0) -> 1
A33: GanttPro | B33: 0 | C33: 9000 | D33: 9000 | E33: 0 | F33: 0 | G33: 1 | H33: 1 | I33: 1 | J33: 1 | K33: =IF(B8*'Вводные данные'!$C$3>150000,1,IF(B8*'Вводные данные'!$C$3<150000,2,IF(B8*'Вводные данные'!$C$3<125000,3,IF(B8*'Вводные данные'!$C$3<100000,4,IF(B8*'Вводные данные'!$C$3<50000,5,IF(B8*'Вводные данные'!$C$3<25000,6,7))))))/$K$51 -> 0.2857142857 | L33: 0.75 | M33: 0.8333333333 | N33: 0 | O33: 0.7142857143 | P33: 1 | Q33: 0.6 | R33: 1 | S33: 1 | T33: =IF(AND('Вводные данные'!$C$2<=Подложка!B33,'Вводные данные'!$C$3<=Подложка!C33,'Вводные данные'!$C$4<=Подложка!D33,'Вводные данные'!$C$5<=Подложка!E33,'Вводные данные'!$C$6<=Подложка!F33,'Вводные данные'!$C$7<=Подложка!G33,'Вводные данные'!$C$8<=Подложка!H33,'Вводные данные'!$C$9<=Подложка!I33,'Вводные данные'!$C$10<=Подложка!J33),1,0) -> 1
A34: ProofHub | B34: 1 | C34: 9000 | D34: 9000 | E34: 1 | F34: 1 | G34: 1 | H34: 1 | I34: 0 | J34: 1 | K34: =IF(B9*'Вводные данные'!$C$3>150000,1,IF(B9*'Вводные данные'!$C$3<150000,2,IF(B9*'Вводные данные'!$C$3<125000,3,IF(B9*'Вводные данные'!$C$3<100000,4,IF(B9*'Вводные данные'!$C$3<50000,5,IF(B9*'Вводные данные'!$C$3<25000,6,7))))))/$K$51 -> 0.2857142857 | L34: 0.75 | M34: 0.8333333333 | N34: 0.5 | O34: 0.5714285714 | P34: 1 | Q34: 0.8 | R34: 1 | S34: 0.2 | T34: =IF(AND('Вводные данные'!$C$2<=Подложка!B34,'Вводные данные'!$C$3<=Подложка!C34,'Вводные данные'!$C$4<=Подложка!D34,'Вводные данные'!$C$5<=Подложка!E34,'Вводные данные'!$C$6<=Подложка!F34,'Вводные данные'!$C$7<=Подложка!G34,'Вводные данные'!$C$8<=Подложка!H34,'Вводные данные'!$C$9<=Подложка!I34,'Вводные данные'!$C$10<=Подложка!J34),1,0) -> 1
A35: Redmine | B35: 1 | C35: 9000 | D35: 9000 | E35: 1 | F35: 1 | G35: 1 | H35: 1 | I35: 0 | J35: 1 | K35: =IF(B10*'Вводные данные'!$C$3>150000,1,IF(B10*'Вводные данные'!$C$3<150000,2,IF(B10*'Вводные данные'!$C$3<125000,3,IF(B10*'Вводные данные'!$C$3<100000,4,IF(B10*'Вводные данные'!$C$3<50000,5,IF(B10*'Вводные данные'!$C$3<25000,6,7))))))/$K$51 -> 0.2857142857 | L35: 0.5 | M35: 1 | N35: 1 | O35: 0.7142857143 | P35: 0.5 | Q35: 0.8 | R35: 0 | S35: 0.2 | T35: =IF(AND('Вводные данные'!$C$2<=Подложка!B35,'Вводные данные'!$C$3<=Подложка!C35,'Вводные данные'!$C$4<=Подложка!D35,'Вводные данные'!$C$5<=Подложка!E35,'Вводные данные'!$C$6<=Подложка!F35,'Вводные данные'!$C$7<=Подложка!G35,'Вводные данные'!$C$8<=Подложка!H35,'Вводные данные'!$C$9<=Подложка!I35,'Вводные данные'!$C$10<=Подложка!J35),1,0) -> 1
A36: Smartsheet | B36: 1 | C36: 9000 | D36: 9000 | E36: 0 | F36: 1 | G36: 1 | H36: 1 | I36: 1 | J36: 1 | K36: =IF(B11*'Вводные данные'!$C$3>150000,1,IF(B11*'Вводные данные'!$C$3<150000,2,IF(B11*'Вводные данные'!$C$3<125000,3,IF(B11*'Вводные данные'!$C$3<100000,4,IF(B11*'Вводные данные'!$C$3<50000,5,IF(B11*'Вводные данные'!$C$3<25000,6,7))))))/$K$51 -> 0.2857142857 | L36: 1 | M36: 0.6666666667 | N36: 0.5 | O36: 0.2857142857 | P36: 1 | Q36: 1 | R36: 1 | S36: 0.8 | T36: =IF(AND('Вводные данные'!$C$2<=Подложка!B36,'Вводные данные'!$C$3<=Подложка!C36,'Вводные данные'!$C$4<=Подложка!D36,'Вводные данные'!$C$5<=Подложка!E36,'Вводные данные'!$C$6<=Подложка!F36,'Вводные данные'!$C$7<=Подложка!G36,'Вводные данные'!$C$8<=Подложка!H36,'Вводные данные'!$C$9<=Подложка!I36,'Вводные данные'!$C$10<=Подложка!J36),1,0) -> 1
A37: TeamGantt | B37: 1 | C37: 9000 | D37: 9000 | E37: 0 | F37: 0 | G37: 1 | H37: 1 | I37: 1 | J37: 1 | K37: =IF(B12*'Вводные данные'!$C$3>150000,1,IF(B12*'Вводные данные'!$C$3<150000,2,IF(B12*'Вводные данные'!$C$3<125000,3,IF(B12*'Вводные данные'!$C$3<100000,4,IF(B12*'Вводные данные'!$C$3<50000,5,IF(B12*'Вводные данные'!$C$3<25000,6,7))))))/$K$51 -> 0.2857142857 | L37: 0.5 | M37: 0.8333333333 | N37: 0.5 | O37: 0.7142857143 | P37: 1 | Q37: 0.8 | R37: 0.6 | S37: 0.8 | T37: =IF(AND('Вводные данные'!$C$2<=Подложка!B37,'Вводные данные'!$C$3<=Подложка!C37,'Вводные данные'!$C$4<=Подложка!D37,'Вводные данные'!$C$5<=Подложка!E37,'Вводные данные'!$C$6<=Подложка!F37,'Вводные данные'!$C$7<=Подложка!G37,'Вводные данные'!$C$8<=Подложка!H37,'Вводные данные'!$C$9<=Подложка!I37,'Вводные данные'!$C$10<=Подложка!J37),1,0) -> 1
A38: Wrike | B38: 1 | C38: 9000 | D38: 9000 | E38: 1 | F38: 1 | G38: 1 | H38: 1 | I38: 1 | J38: 1 | K38: =IF(B13*'Вводные данные'!$C$3>150000,1,IF(B13*'Вводные данные'!$C$3<150000,2,IF(B13*'Вводные данные'!$C$3<125000,3,IF(B13*'Вводные данные'!$C$3<100000,4,IF(B13*'Вводные данные'!$C$3<50000,5,IF(B13*'Вводные данные'!$C$3<25000,6,7))))))/$K$51 -> 0.2857142857 | L38: 1 | M38: 0.8333333333 | N38: 0.75 | O38: 0.4285714286 | P38: 1 | Q38: 1 | R38: 0.8 | S38: 0.6 | T38: =IF(AND('Вводные данные'!$C$2<=Подложка!B38,'Вводные данные'!$C$3<=Подложка!C38,'Вводные данные'!$C$4<=Подложка!D38,'Вводные данные'!$C$5<=Подложка!E38,'Вводные данные'!$C$6<=Подложка!F38,'Вводные данные'!$C$7<=Подложка!G38,'Вводные данные'!$C$8<=Подложка!H38,'Вводные данные'!$C$9<=Подложка!I38,'Вводные данные'!$C$10<=Подложка!J38),1,0) -> 1
A39: MS Project | B39: 0 | C39: 9000 | D39: 9000 | E39: 0 | F39: 1 | G39: 1 | H39: 1 | I39: 1 | J39: 0 | K39: =IF(B14*'Вводные данные'!$C$3>150000,1,IF(B14*'Вводные данные'!$C$3<150000,2,IF(B14*'Вводные данные'!$C$3<125000,3,IF(B14*'Вводные данные'!$C$3<100000,4,IF(B14*'Вводные данные'!$C$3<50000,5,IF(B14*'Вводные данные'!$C$3<25000,6,7))))))/$K$51 -> 0.2857142857 | L39: 0.75 | M39: 1 | N39: 0 | O39: 0.7142857143 | P39: 1 | Q39: 0.6 | R39: 0.8 | S39: 1 | T39: =IF(AND('Вводные данные'!$C$2<=Подложка!B39,'Вводные данные'!$C$3<=Подложка!C39,'Вводные данные'!$C$4<=Подложка!D39,'Вводные данные'!$C$5<=Подложка!E39,'Вводные данные'!$C$6<=Подложка!F39,'Вводные данные'!$C$7<=Подложка!G39,'Вводные данные'!$C$8<=Подложка!H39,'Вводные данные'!$C$9<=Подложка!I39,'Вводные данные'!$C$10<=Подложка!J39),1,0) -> 1
A40: Trello | B40: 1 | C40: 100 | D40: 9000 | E40: 1 | F40: 1 | G40: 1 | H40: 1 | I40: 0 | J40: 1 | K40: =IF(B15*'Вводные данные'!$C$3>150000,1,IF(B15*'Вводные данные'!$C$3<150000,2,IF(B15*'Вводные данные'!$C$3<125000,3,IF(B15*'Вводные данные'!$C$3<100000,4,IF(B15*'Вводные данные'!$C$3<50000,5,IF(B15*'Вводные данные'!$C$3<25000,6,7))))))/$K$51 -> 0.2857142857 | L40: 0.75 | M40: 0.8333333333 | N40: 0.75 | O40: 0.5714285714 | P40: 0.5 | Q40: 1 | R40: 0.6 | S40: =SUM(AL15:AP15)/$S$51 -> 0.4 | T40: =IF(AND('Вводные данные'!$C$2<=Подложка!B40,'Вводные данные'!$C$3<=Подложка!C40,'Вводные данные'!$C$4<=Подложка!D40,'Вводные данные'!$C$5<=Подложка!E40,'Вводные данные'!$C$6<=Подложка!F40,'Вводные данные'!$C$7<=Подложка!G40,'Вводные данные'!$C$8<=Подложка!H40,'Вводные данные'!$C$9<=Подложка!I40,'Вводные данные'!$C$10<=Подложка!J40),1,0) -> 0
A41: Asana | B41: 1 | C41: 9000 | D41: 9000 | E41: 1 | F41: 1 | G41: 1 | H41: 1 | I41: 0 | J41: 1 | K41: =IF(B16*'Вводные данные'!$C$3>150000,1,IF(B16*'Вводные данные'!$C$3<150000,2,IF(B16*'Вводные данные'!$C$3<125000,3,IF(B16*'Вводные данные'!$C$3<100000,4,IF(B16*'Вводные данные'!$C$3<50000,5,IF(B16*'Вводные данные'!$C$3<25000,6,7))))))/$K$51 -> 0.2857142857 | L41: 1 | M41: 0.8333333333 | N41: 0.75 | O41: 0.7142857143 | P41: 1 | Q41: 1 | R41: 0.8 | S41: 0.4 | T41: =IF(AND('Вводные данные'!$C$2<=Подложка!B41,'Вводные данные'!$C$3<=Подложка!C41,'Вводные данные'!$C$4<=Подложка!D41,'Вводные данные'!$C$5<=Подложка!E41,'Вводные данные'!$C$6<=Подложка!F41,'Вводные данные'!$C$7<=Подложка!G41,'Вводные данные'!$C$8<=Подложка!H41,'Вводные данные'!$C$9<=Подложка!I41,'Вводные данные'!$C$10<=Подложка!J41),1,0) -> 1
A42: Jira | B42: 1 | C42: 9000 | D42: 9000 | E42: 1 | F42: 1 | G42: 1 | H42: 1 | I42: 0 | J42: 1 | K42: =IF(B17*'Вводные данные'!$C$3>150000,1,IF(B17*'Вводные данные'!$C$3<150000,2,IF(B17*'Вводные данные'!$C$3<125000,3,IF(B17*'Вводные данные'!$C$3<100000,4,IF(B17*'Вводные данные'!$C$3<50000,5,IF(B17*'Вводные данные'!$C$3<25000,6,7))))))/$K$51 -> 0.2857142857 | L42: 1 | M42: 1 | N42: 0.75 | O42: =SUM(Q17:W17)/$O$51 -> 0.7142857143 | P42: =SUM(X17:AA17)/$P$51 -> 0.5 | Q42: 0.8 | R42: 0.8 | S42: 0.4 | T42: =IF(AND('Вводные данные'!$C$2<=Подложка!B42,'Вводные данные'!$C$3<=Подложка!C42,'Вводные данные'!$C$4<=Подложка!D42,'Вводные данные'!$C$5<=Подложка!E42,'Вводные данные'!$C$6<=Подложка!F42,'Вводные данные'!$C$7<=Подложка!G42,'Вводные данные'!$C$8<=Подложка!H42,'Вводные данные'!$C$9<=Подложка!I42,'Вводные данные'!$C$10<=Подложка!J42),1,0) -> 1
A43: Bitrix24 | B43: 1 | C43: 9000 | D43: 9000 | E43: 0 | F43: 0 | G43: 1 | H43: 1 | I43: 1 | J43: 1 | K43: =IF(B18*'Вводные данные'!$C$3>150000,1,IF(B18*'Вводные данные'!$C$3<150000,2,IF(B18*'Вводные данные'!$C$3<125000,3,IF(B18*'Вводные данные'!$C$3<100000,4,IF(B18*'Вводные данные'!$C$3<50000,5,IF(B18*'Вводные данные'!$C$3<25000,6,7))))))/$K$51 -> 0.2857142857 | L43: 0.5 | M43: =SUM(G18:L18)/$M$51 -> 1 | N43: =SUM(M18:P18)/$N$51 -> 0.75 | O43: =SUM(Q18:W18)/$O$51 -> 0.7142857143 | P43: =SUM(X18:AA18)/$P$51 -> 1 | Q43: =SUM(AB18:AF18)/$Q$51 -> 0.8 | R43: =SUM(AG18:AK18)/$R$51 -> 0.8 | S43: =SUM(AL18:AP18)/$S$51 -> 0.6 | T43: =IF(AND('Вводные данные'!$C$2<=Подложка!B43,'Вводные данные'!$C$3<=Подложка!C43,'Вводные данные'!$C$4<=Подложка!D43,'Вводные данные'!$C$5<=Подложка!E43,'Вводные данные'!$C$6<=Подложка!F43,'Вводные данные'!$C$7<=Подложка!G43,'Вводные данные'!$C$8<=Подложка!H43,'Вводные данные'!$C$9<=Подложка!I43,'Вводные данные'!$C$10<=Подложка!J43),1,0) -> 1
A44: Basecamp | B44: 1 | C44: 9000 | D44: 9000 | E44: 1 | F44: 1 | G44: 1 | H44: 1 | I44: 0 | J44: 1 | K44: =IF(B19*'Вводные данные'!$C$3>150000,1,IF(B19*'Вводные данные'!$C$3<150000,2,IF(B19*'Вводные данные'!$C$3<125000,3,IF(B19*'Вводные данные'!$C$3<100000,4,IF(B19*'Вводные данные'!$C$3<50000,5,IF(B19*'Вводные данные'!$C$3<25000,6,7))))))/$K$51 -> 0.2857142857 | L44: 0.5 | M44: 0.8333333333 | N44: 0.75 | O44: 0.7142857143 | P44: 0.75 | Q44: 1 | R44: 0.4 | S44: 0 | T44: =IF(AND('Вводные данные'!$C$2<=Подложка!B44,'Вводные данные'!$C$3<=Подложка!C44,'Вводные данные'!$C$4<=Подложка!D44,'Вводные данные'!$C$5<=Подложка!E44,'Вводные данные'!$C$6<=Подложка!F44,'Вводные данные'!$C$7<=Подложка!G44,'Вводные данные'!$C$8<=Подложка!H44,'Вводные данные'!$C$9<=Подложка!I44,'Вводные данные'!$C$10<=Подложка!J44),1,0) -> 1
A45: Hive | B45: 1 | C45: 9000 | D45: 9000 | E45: 1 | F45: 1 | G45: 1 | H45: 1 | I45: 1 | J45: 0 | K45: =IF(B20*'Вводные данные'!$C$3>150000,1,IF(B20*'Вводные данные'!$C$3<150000,2,IF(B20*'Вводные данные'!$C$3<125000,3,IF(B20*'Вводные данные'!$C$3<100000,4,IF(B20*'Вводные данные'!$C$3<50000,5,IF(B20*'Вводные данные'!$C$3<25000,6,7))))))/$K$51 -> 0.2857142857 | L45: 0.5 | M45: 0.8333333333 | N45: 0.75 | O45: 0.7142857143 | P45: 0.75 | Q45: 0.8 | R45: 0.8 | S45: 0.6 | T45: =IF(AND('Вводные данные'!$C$2<=Подложка!B45,'Вводные данные'!$C$3<=Подложка!C45,'Вводные данные'!$C$4<=Подложка!D45,'Вводные данные'!$C$5<=Подложка!E45,'Вводные данные'!$C$6<=Подложка!F45,'Вводные данные'!$C$7<=Подложка!G45,'Вводные данные'!$C$8<=Подложка!H45,'Вводные данные'!$C$9<=Подложка!I45,'Вводные данные'!$C$10<=Подложка!J45),1,0) -> 1
A46: Backlog | B46: 1 | C46: 9000 | D46: 9000 | E46: 0 | F46: 1 | G46: 1 | H46: 1 | I46: 0 | J46: 1 | K46: =IF(B21*'Вводные данные'!$C$3>150000,1,IF(B21*'Вводные данные'!$C$3<150000,2,IF(B21*'Вводные данные'!$C$3<125000,3,IF(B21*'Вводные данные'!$C$3<100000,4,IF(B21*'Вводные данные'!$C$3<50000,5,IF(B21*'Вводные данные'!$C$3<25000,6,7))))))/$K$51 -> 0.1428571429 | L46: 1 | M46: 1 | N46: 0.5 | O46: 0.8571428571 | P46: 1 | Q46: 1 | R46: 0.4 | S46: 0.4 | T46: =IF(AND('Вводные данные'!$C$2<=Подложка!B46,'Вводные данные'!$C$3<=Подложка!C46,'Вводные данные'!$C$4<=Подложка!D46,'Вводные данные'!$C$5<=Подложка!E46,'Вводные данные'!$C$6<=Подложка!F46,'Вводные данные'!$C$7<=Подложка!G46,'Вводные данные'!$C$8<=Подложка!H46,'Вводные данные'!$C$9<=Подложка!I46,'Вводные данные'!$C$10<=Подложка!J46),1,0) -> 1
A47: ClickUp | B47: 1 | C47: 9000 | D47: 9000 | E47: 1 | F47: 1 | G47: 1 | H47: 1 | I47: 1 | J47: 1 | K47: =IF(B22*'Вводные данные'!$C$3>150000,1,IF(B22*'Вводные данные'!$C$3<150000,2,IF(B22*'Вводные данные'!$C$3<125000,3,IF(B22*'Вводные данные'!$C$3<100000,4,IF(B22*'Вводные данные'!$C$3<50000,5,IF(B22*'Вводные данные'!$C$3<25000,6,7))))))/$K$51 -> 0.2857142857 | L47: 1 | M47: 0.8333333333 | N47: 1 | O47: 0.8571428571 | P47: 1 | Q47: 1 | R47: 0.8 | S47: 0.6 | T47: =IF(AND('Вводные данные'!$C$2<=Подложка!B47,'Вводные данные'!$C$3<=Подложка!C47,'Вводные данные'!$C$4<=Подложка!D47,'Вводные данные'!$C$5<=Подложка!E47,'Вводные данные'!$C$6<=Подложка!F47,'Вводные данные'!$C$7<=Подложка!G47,'Вводные данные'!$C$8<=Подложка!H47,'Вводные данные'!$C$9<=Подложка!I47,'Вводные данные'!$C$10<=Подложка!J47),1,0) -> 1
A48: Planfix | B48: 1 | C48: 1500 | D48: 9000 | E48: 1 | F48: 1 | G48: 1 | H48: 1 | I48: 1 | J48: 1 | K48: =IF(B23*'Вводные данные'!$C$3>150000,1,IF(B23*'Вводные данные'!$C$3<150000,2,IF(B23*'Вводные данные'!$C$3<125000,3,IF(B23*'Вводные данные'!$C$3<100000,4,IF(B23*'Вводные данные'!$C$3<50000,5,IF(B23*'Вводные данные'!$C$3<25000,6,7))))))/$K$51 -> 0.2857142857 | L48: 0.75 | M48: 1 | N48: 0.5 | O48: 0.8571428571 | P48: 1 | Q48: 1 | R48: 0.8 | S48: 0.8 | T48: =IF(AND('Вводные данные'!$C$2<=Подложка!B48,'Вводные данные'!$C$3<=Подложка!C48,'Вводные данные'!$C$4<=Подложка!D48,'Вводные данные'!$C$5<=Подложка!E48,'Вводные данные'!$C$6<=Подложка!F48,'Вводные данные'!$C$7<=Подложка!G48,'Вводные данные'!$C$8<=Подложка!H48,'Вводные данные'!$C$9<=Подложка!I48,'Вводные данные'!$C$10<=Подложка!J48),1,0) -> 1
A49: YouTrack | B49: 1 | C49: 9000 | D49: 9000 | E49: 1 | F49: 1 | G49: 1 | H49: 1 | I49: 0 | J49: 1 | K49: =IF(B24*'Вводные данные'!$C$3>150000,1,IF(B24*'Вводные данные'!$C$3<150000,2,IF(B24*'Вводные данные'!$C$3<125000,3,IF(B24*'Вводные данные'!$C$3<100000,4,IF(B24*'Вводные данные'!$C$3<50000,5,IF(B24*'Вводные данные'!$C$3<25000,6,7))))))/$K$51 -> 0.2857142857 | L49: 0.75 | M49: 1 | N49: 0.5 | O49: 0.8571428571 | P49: 1 | Q49: 1 | R49: 0.8 | S49: 0.4 | T49: =IF(AND('Вводные данные'!$C$2<=Подложка!B49,'Вводные данные'!$C$3<=Подложка!C49,'Вводные данные'!$C$4<=Подложка!D49,'Вводные данные'!$C$5<=Подложка!E49,'Вводные данные'!$C$6<=Подложка!F49,'Вводные данные'!$C$7<=Подложка!G49,'Вводные данные'!$C$8<=Подложка!H49,'Вводные данные'!$C$9<=Подложка!I49,'Вводные данные'!$C$10<=Подложка!J49),1,0) -> 1
A50: Название параметра | B50: Наличие мобильного приложения | C50: Минимальное число пользователей | D50: Минимальное число проектов | E50: Интеграция с GitHub | F50: Интеграция с почтой | G50: Наличие облачного решения | H50: Возможность работы с расписанием | I50: Возможность работы с ресурами проектов | J50: Открытый API | K50: Ежемесячные затраты | L50: Техподдержка | M50: Безопасность | N50: Кросс-платформа | O50: Работа с задачами/проектами | P50: Работа с расписаниями | Q50: Ведение коммуникаций и интеграция | R50: Отчетность | S50: Работа с ресурсами
A51: Максимальный балл | B51: - | K51: 7 | L51: 4 | M51: 6 | N51: 4 | O51: 7 | P51: 4 | Q51: 5 | R51: 5 | S51: 5

Sheet Выдача
A2: Альтернатива | B2: Проходит по фильтрам? | C2: Результат
A3: ClickUp | B3: =IF(Подложка!T47=0,"Исключено","") ->  | C3: =SUMPRODUCT(Подложка!K47:S47,'Вводные данные'!$C$13:$K$13) -> 12.69047619
A4: Planfix | B4: =IF(Подложка!T48=0,"Исключено","") ->  | C4: =SUMPRODUCT(Подложка!K48:S48,'Вводные данные'!$C$13:$K$13) -> 12.50714286
A5: Celoxis | B5: =IF(Подложка!T32=0,"Исключено","") ->  | C5: =SUMPRODUCT(Подложка!K32:S32,'Вводные данные'!$C$13:$K$13) -> 12.4
A6: Zoho Projects | B6: =IF(Подложка!T31=0,"Исключено","") ->  | C6: =SUMPRODUCT(Подложка!K31:S31,'Вводные данные'!$C$13:$K$13) -> 12.39047619
A7: Teamwork | B7: =IF(Подложка!T30=0,"Исключено","") -> Исключено | C7: =SUMPRODUCT(Подложка!K30:S30,'Вводные данные'!$C$13:$K$13) -> 12.07857143
A8: YouTrack | B8: =IF(Подложка!T49=0,"Исключено","") ->  | C8: =SUMPRODUCT(Подложка!K49:S49,'Вводные данные'!$C$13:$K$13) -> 11.70714286
A9: Asana | B9: =IF(Подложка!T41=0,"Исключено","") ->  | C9: =SUMPRODUCT(Подложка!K41:S41,'Вводные данные'!$C$13:$K$13) -> 11.61190476
A10: Backlog | B10: =IF(Подложка!T46=0,"Исключено","") ->  | C10: =SUMPRODUCT(Подложка!K46:S46,'Вводные данные'!$C$13:$K$13) -> 11.41428571
A11: Wrike | B11: =IF(Подложка!T38=0,"Исключено","") ->  | C11: =SUMPRODUCT(Подложка!K38:S38,'Вводные данные'!$C$13:$K$13) -> 11.1547619
A12: Bitrix24 | B12: =IF(Подложка!T43=0,"Исключено","") ->  | C12: =SUMPRODUCT(Подложка!K43:S43,'Вводные данные'!$C$13:$K$13) -> 11.07857143
A13: Smartsheet | B13: =IF(Подложка!T36=0,"Исключено","") ->  | C13: =SUMPRODUCT(Подложка!K36:S36,'Вводные данные'!$C$13:$K$13) -> 10.90952381
A14: TeamGantt | B14: =IF(Подложка!T37=0,"Исключено","") ->  | C14: =SUMPRODUCT(Подложка!K37:S37,'Вводные данные'!$C$13:$K$13) -> 10.86190476
A15: GanttPro | B15: =IF(Подложка!T33=0,"Исключено","") ->  | C15: =SUMPRODUCT(Подложка!K33:S33,'Вводные данные'!$C$13:$K$13) -> 10.81190476
A16: MS Project | B16: =IF(Подложка!T39=0,"Исключено","") ->  | C16: =SUMPRODUCT(Подложка!K39:S39,'Вводные данные'!$C$13:$K$13) -> 10.77857143
A17: Hive | B17: =IF(Подложка!T45=0,"Исключено","") ->  | C17: =SUMPRODUCT(Подложка!K45:S45,'Вводные данные'!$C$13:$K$13) -> 10.41190476
A18: Jira | B18: =IF(Подложка!T42=0,"Исключено","") ->  | C18: =SUMPRODUCT(Подложка!K42:S42,'Вводные данные'!$C$13:$K$13) -> 10.17857143
A19: ProofHub | B19: =IF(Подложка!T34=0,"Исключено","") ->  | C19: =SUMPRODUCT(Подложка!K34:S34,'Вводные данные'!$C$13:$K$13) -> 9.883333333
A20: Trello | B20: =IF(Подложка!T40=0,"Исключено","") -> Исключено | C20: =SUMPRODUCT(Подложка!K40:S40,'Вводные данные'!$C$13:$K$13) -> 9.733333333
A21: Basecamp | B21: =IF(Подложка!T44=0,"Исключено","") ->  | C21: =SUMPRODUCT(Подложка!K44:S44,'Вводные данные'!$C$13:$K$13) -> 9.411904762
A22: Redmine | B22: =IF(Подложка!T35=0,"Исключено","") ->  | C22: =SUMPRODUCT(Подложка!K35:S35,'Вводные данные'!$C$13:$K$13) -> 8.728571429
A23: LiquidPlanner | B23: =IF(Подложка!T29=0,"Исключено","") ->  | C23: =SUMPRODUCT(Подложка!K29:S29,'Вводные данные'!$C$13:$K$13) -> 8.35952381
